bitfinex/quotes_SOLUSD_20250718
["timestamp","ask_amount","ask_price","bid_price","bid_amount"]
[1752810588387,12.06378864,180.66,180.65,0.2]
[1752810588885,0.14216157,180.62,180.53,1.5236]
[1752810589077,6.52852904,180.54,180.53,2.2036]
[1752810591877,5.53806871,180.57,180.53,2.2036]
[1752810592079,26.0,180.58,180.53,1.5236]
[1752810592080,6.52852904,180.54,180.53,1.5236]
[1752810592580,6.52852904,180.54,180.53,2.1936]
[1752810593893,6.52852904,180.54,180.53,1.5236]
[1752810594082,6.52852904,180.54,180.53,2.1936]
[1752810595580,5.53807555,180.57,180.53,2.1936]
[1752810595784,6.52852904,180.54,180.53,1.5236]
[1752810595989,5.53807555,180.57,180.53,1.5236]
[1752810596183,6.52852904,180.54,180.53,1.5236]
[1752810596383,6.52852904,180.54,180.51,0.67]
[1752810596699,6.52852904,180.52,180.49,8.2014]
[1752810596901,5.89807555,180.57,180.49,24.98608397]
[1752810596902,6.52852904,180.5,180.49,24.98608397]
[1752810597068,6.52852904,180.5,180.49,30.52655712]
[1752810597273,6.52852904,180.5,180.49,25.65608397]
[1752810597701,6.52852904,180.5,180.49,14.41187315]
[1752810598604,6.52852904,180.5,180.49,8.8714]
[1752810601375,6.52852904,180.5,180.49,14.41187315]
[1752810602295,6.52852904,180.5,180.49,31.19655712]
[1752810602499,6.52852904,180.51,180.49,31.19655712]
[1752810602701,6.52852904,180.51,180.49,30.52655712]
[1752810602880,6.52852904,180.51,180.5,0.67]
[1752810603876,6.52852904,180.51,180.49,30.0089]
[1752810604187,6.52852904,180.5,180.49,29.06]
[1752810604385,6.52852904,180.5,180.49,0.03]
[1752810604588,26.0,180.47,180.43,0.67]
[1752810604785,6.52852904,180.44,180.43,0.67]
[1752810606404,31.54055702,180.49,180.43,6.21231557]
[1752810606589,6.52852904,180.44,180.43,28.38]
[1752810606905,6.52852904,180.44,180.43,34.4783]
[1752810607075,6.52852904,180.44,180.43,35.1483]
[1752810608506,5.5411304,180.47,180.43,35.1483]
[1752810608711,6.52852904,180.44,180.43,35.1483]
[1752810608893,6.52852904,180.44,180.43,34.4783]
[1752810609498,6.52852904,180.44,180.43,35.1483]
[1752810609702,7.02852904,180.44,180.41,29.06]
[1752810609882,6.52852904,180.42,180.41,28.39]
[1752810610402,6.52852904,180.42,180.41,29.06]
[1752810611397,6.52852904,180.43,180.41,34.60292999]
[1752810611704,31.54055192,180.49,180.42,0.67]
[1752810611906,6.52852904,180.44,180.43,28.38]
[1752810612113,6.52852904,180.44,180.43,29.05]
[1752810612409,31.54055192,180.49,180.43,29.05]
[1752810612588,31.54055192,180.49,180.43,33.92205702]
[1752810612787,6.52852904,180.49,180.46,16.78468397]
[1752810612996,6.52852904,180.5,180.47,28.38]
[1752810613199,2.6791,180.58,180.47,28.38]
[1752810613200,6.52852904,180.52,180.48,17.45468397]
[1752810613414,6.52852904,180.52,180.49,0.67]
[1752810613704,6.52852904,180.52,180.5,28.38]
[1752810614084,6.52852904,180.52,180.51,0.67]
[1752810614999,6.52852904,180.52,180.51,6.20985928]
[1752810615605,26.0,180.54,180.51,6.20985928]
[1752810615810,26.0,180.54,180.52,0.67]
[1752810616109,32.88852904,180.53,180.44,1.6082]
[1752810616290,5.53985928,180.51,180.46,28.38]
[1752810616486,6.04177798,180.52,180.47,0.67]
[1752810617000,5.53961641,180.52,180.48,0.67]
[1752810617201,31.53926615,180.53,180.48,0.67]
[1752810617509,6.52852904,180.49,180.48,0.67]
[1752810618701,5.53961308,180.52,180.48,0.67]
[1752810618891,6.52852904,180.49,180.48,0.67]
[1752810619901,42.38874146,180.55,180.48,0.67]
[1752810619902,0.14216157,180.55,180.48,0.67]
[1752810620105,6.52852904,180.52,180.49,28.38]
[1752810620324,6.52852904,180.52,180.5,5.5401662]
[1752810620488,6.52852904,180.52,180.51,0.67]
[1752810621719,6.52852904,180.52,180.49,34.62038847]
[1752810621929,6.52852904,180.51,180.5,0.7]
[1752810622217,6.52852904,180.51,180.49,33.92038847]
[1752810622396,6.52852904,180.52,180.49,33.92038847]
[1752810622601,6.52852904,180.52,180.5,0.7]
[1752810623018,6.52852904,180.53,180.5,0.7]
[1752810624244,6.52852904,180.52,180.51,0.7]
[1752810624919,6.52852904,180.53,180.51,0.7]
[1752810625607,6.52852904,180.53,180.51,6.23973917]
[1752810625806,6.52852904,180.54,180.52,0.7]
[1752810625991,6.52852904,180.55,180.52,0.7]
[1752810626188,6.52852904,180.55,180.52,29.08]
[1752810626403,6.52852904,180.55,180.52,28.38]
[1752810626619,32.52852904,180.55,180.53,0.7]
[1752810627095,6.52852904,180.54,180.52,28.38]
[1752810627698,26.0,180.55,180.53,0.7]
[1752810627905,6.52852904,180.54,180.52,33.9194979]
[1752810628498,6.52852904,180.54,180.53,0.7]
[1752810629099,6.52852904,180.55,180.53,0.7]
[1752810629802,6.52852904,180.55,180.53,6.23902673]
[1752810630438,6.52852904,180.55,180.54,0.7]
[1752810631696,6.52852904,180.56,180.54,6.23888135]
[1752810631924,6.52852904,180.56,180.55,0.7]
[1752810632329,6.52852904,180.56,180.54,6.23888135]
[1752810632509,6.52852904,180.56,180.55,0.7]
[1752810633028,6.52852904,180.57,180.55,29.04]
[1752810633320,6.52852904,180.57,180.56,0.7]
[1752810633904,6.52852904,180.58,180.56,0.7]
[1752810634114,6.52852904,180.58,180.57,0.7]
[1752810634519,5.5371521,180.6,180.57,0.7]
[1752810634706,6.52852904,180.58,180.57,0.7]
[1752810634906,6.52852904,180.58,180.55,28.34]
[1752810635124,6.52852904,180.58,180.56,0.7]
[1752810636128,6.52852904,180.57,180.56,0.7]
[1752810638134,6.52852904,180.58,180.56,0.7]
[1752810638307,31.53686094,180.61,180.56,6.23821481]
[1752810638308,6.52852904,180.59,180.56,6.23821481]
[1752810638512,6.52852904,180.6,180.57,0.7]
[1752810638831,6.52852904,180.6,180.58,0.7]
[1752810639429,6.52852904,180.6,180.59,0.7]
[1752810639729,6.52852904,180.6,180.56,5.53821481]
[1752810639730,6.52852904,180.6,180.58,28.32]
[1752810640240,6.52852904,180.59,180.58,29.02]
[1752810640528,6.52852904,180.59,180.58,28.32]
[1752810640829,31.53680787,180.61,180.58,28.32]
[1752810641035,0.50216157,180.63,180.58,29.02]
[1752810641036,26.0,180.62,180.58,29.02]
[1752810641220,6.52852904,180.59,180.58,29.02]
[1752810641536,6.52852904,180.59,180.58,28.3]
[1752810642117,6.52852904,180.59,180.58,29.0]
[1752810642337,6.52852904,180.6,180.58,29.0]
[1752810642629,6.52852904,180.6,180.59,0.7]
[1752810643331,6.52852904,180.61,180.59,0.7]
[1752810643517,6.58852904,180.64,180.6,5.53709856]
[1752810643831,6.58852904,180.64,180.61,29.0]
[1752810644043,0.06,180.64,180.62,0.7]
[1752810645533,0.06,180.64,180.62,6.23619083]
[1752810645915,0.06,180.64,180.63,0.7]
[1752810646343,0.06,180.64,180.63,17.48468397]
[1752810647624,0.06,180.64,180.63,23.02086289]
[1752810648022,0.06,180.64,180.63,51.32086289]
[1752810651627,0.06,180.64,180.63,29.0]
[1752810651832,0.06,180.64,180.59,17.2321]
[1752810651833,6.58852904,180.64,180.61,0.69]
[1752810652142,6.52852904,180.62,180.57,0.69]
[1752810652340,6.52852904,180.58,180.57,29.03]
[1752810656237,6.52852904,180.58,180.57,28.34]
[1752810656723,12.06624085,180.58,180.57,28.34]
[1752810657625,6.52852904,180.58,180.57,28.34]
[1752810661650,6.52852904,180.58,180.55,28.3]
[1752810661952,6.52852904,180.56,180.55,28.3]
[1752810662144,6.52852904,180.56,180.55,28.99]
[1752810663849,6.52852904,180.56,180.55,28.3]
[1752810664846,6.52852904,180.56,180.55,28.99]
[1752810665055,6.52852904,180.58,180.55,34.52863195]
[1752810665347,6.52852904,180.57,180.56,0.69]
[1752810665741,26.0,180.62,180.56,0.69]
[1752810665946,26.0,180.6,180.57,28.3]
[1752810666247,6.52852904,180.58,180.57,28.3]
[1752810667430,12.06624085,180.58,180.57,28.3]
[1752810667752,12.42624085,180.58,180.55,28.3]
[1752810668049,6.52852904,180.56,180.55,28.3]
[1752810668445,0.36,180.57,180.55,28.3]
[1752810668643,6.52852904,180.56,180.55,28.3]
[1752810670464,26.0,180.61,180.55,28.99]
[1752810670632,6.52852904,180.57,180.56,0.69]
[1752810670838,6.52852904,180.58,180.56,0.69]
[1752810671137,6.52852904,180.58,180.56,6.22816274]
[1752810671450,6.52852904,180.59,180.57,0.69]
[1752810671653,6.52852904,180.59,180.58,28.3]
[1752810671955,6.52852904,180.59,180.58,28.99]
[1752810672330,6.52852904,180.6,180.58,28.99]
[1752810672729,6.52852904,180.61,180.59,0.69]
[1752810672927,6.52852904,180.61,180.6,0.69]
[1752810673165,6.52852904,180.62,180.6,6.22709856]
[1752810673331,6.52852904,180.62,180.61,28.3]
[1752810673535,0.06,180.64,180.61,28.99]
[1752810673536,6.52852904,180.63,180.61,28.99]
[1752810673737,6.52852904,180.63,180.62,0.69]
[1752810674046,6.58852904,180.64,180.62,0.69]
[1752810674246,0.06,180.64,180.62,0.69]
[1752810675261,6.58852904,180.64,180.62,6.22636659]
[1752810676237,0.06,180.64,180.63,0.69]
[1752810677557,0.06,180.64,180.63,17.47468397]
[1752810678855,0.06,180.64,180.63,23.01086289]
[1752810680439,0.06,180.64,180.63,51.31086289]
[1752810680869,0.06,180.64,180.63,57.42486289]
[1752810681738,0.06,180.64,180.63,63.95339193]
[1752810681939,0.06,180.64,180.63,65.58589193]
[1752810682540,0.06,180.64,180.63,65.7280535]
[1752810684644,0.06,180.68,180.63,79.56850082]
[1752810684840,0.06,180.68,180.67,16.78468397]
[1752810685062,0.06,180.68,180.67,45.06468397]
[1752810685264,0.06,180.68,180.67,45.75468397]
[1752810685961,0.06,180.68,180.67,17.47468397]
[1752810686268,0.06,180.68,180.67,45.73468397]
[1752810687771,0.06,180.68,180.67,51.26963719]
[1752810689552,0.06,180.68,180.67,45.73468397]
[1752810690074,0.06,180.68,180.67,28.26]
[1752810690264,6.58852904,180.68,180.65,17.47468397]
[1752810690461,6.52852904,180.67,180.66,28.26]
[1752810694063,6.52852904,180.67,180.65,28.26]
[1752810694254,5.59467359,180.68,180.65,28.26]
[1752810694255,6.52852904,180.66,180.65,28.26]
[1752810694469,6.52852904,180.66,180.62,15.6]
[1752810694660,6.52852904,180.66,180.59,6.1667]
[1752810694661,6.52852904,180.63,180.59,6.8567]
[1752810694853,6.52852904,180.61,180.6,28.93]
[1752810695676,6.52852904,180.61,180.6,28.24]
[1752810698869,5.89608564,180.64,180.6,28.24]
[1752810699075,6.52852904,180.61,180.6,28.24]
[1752810700580,12.42532102,180.61,180.6,28.24]
[1752810701172,12.42532102,180.61,180.58,28.26]
[1752810701484,6.52852904,180.59,180.58,28.26]
[1752810703978,6.52852904,180.59,180.58,28.95]
[1752810705174,6.52852904,180.59,180.58,28.29]
[1752810707497,6.52852904,180.59,180.58,0.03]
[1752810708093,12.06593421,180.59,180.58,0.03]
[1752810708393,12.42593421,180.59,180.58,0.03]
[1752810710369,6.52852904,180.59,180.58,0.03]
[1752810711892,12.06593421,180.59,180.58,0.03]
[1752810712700,6.52852904,180.59,180.58,0.03]
[1752810713069,6.52852904,180.59,180.58,0.69]
[1752810713497,6.52852904,180.59,180.58,0.03]
[1752810719897,12.06593421,180.59,180.58,0.03]
[1752810721698,12.42593421,180.59,180.58,0.03]
[1752810722102,38.42593421,180.59,180.58,0.03]
[1752810722280,26.0,180.57,180.56,0.03]
[1752810722481,32.52852904,180.57,180.56,0.03]
[1752810722676,32.88852904,180.57,180.56,0.03]
[1752810723809,38.42654753,180.57,180.56,0.03]
[1752810725811,26.0,180.58,180.56,0.03]
[1752810726113,26.0,180.6,180.56,0.69]
[1752810726283,6.52852904,180.57,180.56,0.03]
[1752810726889,6.52852904,180.57,180.56,0.69]
[1752810727196,32.52852904,180.57,180.56,0.69]
[1752810727578,32.52852904,180.57,180.56,0.03]
[1752810727916,32.52852904,180.57,180.56,0.69]
[1752810728409,32.52852904,180.57,180.56,0.03]
[1752810729092,6.52852904,180.57,180.56,0.69]
[1752810729783,0.06,180.59,180.56,6.0236098]
[1752810729991,6.52852904,180.58,180.56,1.535]
[1752810730202,6.52852904,180.58,180.57,4.48985705]
[1752810731179,6.52852904,180.58,180.57,10.02787554]
[1752810736486,0.06,180.59,180.58,16.78468397]
[1752810736689,0.06,180.59,180.58,21.27454102]
[1752810737991,0.06,180.59,180.58,55.07225283]
[1752810741689,0.06,180.59,180.58,61.60078187]
[1752810741889,0.06,180.63,180.6,16.78468397]
[1752810742101,0.06,180.63,180.62,23.31321301]
[1752810742295,0.06,180.63,180.62,27.14307006]
[1752810742501,0.06,180.67,180.63,16.78468397]
[1752810742812,0.06,180.67,180.65,16.78468397]
[1752810742998,0.06,180.67,180.66,3.82985705]
[1752810743200,0.06,180.67,180.66,4.50985705]
[1752810743399,0.06,180.67,180.66,32.88985705]
[1752810743808,0.06,180.67,180.66,38.42511665]
[1752810745225,6.58852904,180.67,180.66,37.74511665]
[1752810745394,6.58852904,180.67,180.66,32.20985705]
[1752810745716,0.06,180.67,180.66,34.5952596]
[1752810745898,0.06,180.67,180.66,38.42432121]
[1752810746218,0.06,180.67,180.66,38.40432121]
[1752810748722,0.06,180.67,180.66,32.86479883]
[1752810750026,6.58852904,180.67,180.66,32.18479883]
[1752810751302,6.58852904,180.67,180.66,32.86479883]
[1752810751699,0.06,180.67,180.66,32.86479883]
[1752810754023,6.58852904,180.67,180.66,32.86479883]
[1752810754727,0.06,180.67,180.66,32.86479883]
[1752810756921,6.58852904,180.67,180.66,32.86479883]
[1752810757307,6.58852904,180.67,180.66,29.04]
[1752810758416,0.06,180.67,180.66,28.36]
[1752810758625,6.58852904,180.67,180.66,28.36]
[1752810759927,0.06,180.67,180.66,34.5752596]
[1752810762737,6.58852904,180.67,180.66,29.04]
[1752810763230,0.06,180.67,180.66,29.04]
[1752810764616,6.58852904,180.67,180.66,28.36]
[1752810766216,6.58852904,180.67,180.64,6.21586123]
[1752810766415,6.52852904,180.66,180.65,28.28]
[1752810767116,6.58852904,180.67,180.65,28.96]
[1752810767332,6.58852904,180.67,180.66,28.28]
[1752810767534,6.58852904,180.67,180.64,5.53586123]
[1752810767719,6.58852904,180.67,180.65,28.28]
[1752810768223,6.58852904,180.67,180.66,28.28]
[1752810770336,6.58852904,180.67,180.66,32.0680977]
[1752810770509,6.58852904,180.67,180.66,28.28]
[1752810771029,6.58852904,180.67,180.66,32.06801977]
[1752810771233,6.58852904,180.67,180.66,32.75926677]
[1752810773629,4.63015785,180.67,180.66,32.75926677]
[1752810774108,0.06,180.68,180.66,38.29452637]
[1752810774312,0.06,180.68,180.67,4.47926677]
[1752810774830,0.06,180.68,180.67,4.48153291]
[1752810775034,6.58852904,180.68,180.67,3.79153291]
[1752810775331,0.06,180.68,180.67,4.48153291]
[1752810775627,0.06,180.68,180.67,26.8011701]
[1752810778522,0.06,180.68,180.67,33.32969914]
[1752810779229,1e-08,180.68,180.67,50.59229914]
[1752810779433,0.06,180.71,180.68,16.78468397]
[1752810779750,0.06,180.71,180.7,5.53403431]
[1752810779952,0.06,180.71,180.7,32.63878023]
[1752810780338,0.06,180.71,180.7,33.32878023]
[1752810781129,0.06,180.71,180.7,61.62878023]
[1752810781748,1e-08,180.71,180.7,68.15730927]
[1752810782244,1e-08,180.71,180.7,55.10025119]
[1752810782439,1e-08,180.71,180.7,57.83724732]
[1752810782646,1e-08,180.71,180.7,61.60811553]
[1752810783847,1e-08,180.71,180.7,61.64811553]
[1752810784360,1e-08,180.71,180.7,55.11958649]
[1752810784651,1e-08,180.71,180.7,49.58555218]
[1752810784832,1e-08,180.71,180.7,55.11958649]
[1752810785038,1e-08,180.71,180.7,61.64811553]
[1752810786733,1e-08,180.71,180.7,49.58555218]
[1752810786947,1e-08,180.71,180.7,56.11408122]
[1752810787248,1e-08,180.71,180.7,61.64811553]
[1752810787628,1e-08,180.71,180.7,57.85724732]
[1752810789445,1e-08,180.71,180.7,51.32871828]
[1752810789654,1e-08,180.71,180.7,57.85724732]
[1752810790155,1e-08,180.71,180.7,51.32871828]
[1752810790359,1e-08,180.71,180.7,57.85724732]
[1752810790862,1e-08,180.71,180.7,79.98577636]
[1752810791038,0.06,180.76,180.75,16.78468397]
[1752810791236,0.06,180.76,180.75,67.21321301]
[1752810791458,0.06,180.76,180.75,67.90321301]
[1752810792360,0.06,180.76,180.75,66.90718742]
[1752810792566,0.06,180.76,180.75,73.43571646]
[1752810792942,0.06,180.76,180.75,66.90718742]
[1752810793453,0.06,180.76,180.75,73.43571646]
[1752810797050,0.06,180.76,180.75,66.90718742]
[1752810797256,0.06,180.76,180.75,73.43571646]
[1752810797944,0.06,180.76,180.75,66.90718742]
[1752810798147,0.06,180.76,180.75,73.43571646]
[1752810799147,0.06,180.83,180.79,16.78468397]
[1752810799343,0.06,180.83,180.81,16.78468397]
[1752810799570,0.48,180.83,180.82,28.32]
[1752810799872,6.58852904,180.83,180.82,28.32]
[1752810800059,6.58852904,180.83,180.8,28.32]
[1752810800243,6.52852904,180.81,180.8,28.32]
[1752810800446,6.94852904,180.81,180.8,28.32]
[1752810801068,0.06,180.83,180.8,28.32]
[1752810801069,6.58852904,180.83,180.8,28.32]
[1752810801451,7.00852904,180.83,180.8,28.32]
[1752810801782,7.00852904,180.83,180.8,33.8509259]
[1752810801956,0.48,180.83,180.8,33.8509259]
[1752810802157,7.00852904,180.83,180.8,28.32]
[1752810803448,7.00852904,180.83,180.8,33.85095112]
[1752810804049,0.06,180.83,180.81,0.7]
[1752810804245,0.06,180.83,180.82,29.04]
[1752810804659,0.06,180.83,180.82,28.34]
[1752810805066,7.00852904,180.83,180.78,22.31621679]
[1752810805375,0.42,180.82,180.79,28.34]
[1752810805552,6.94852904,180.82,180.79,28.34]
[1752810806075,6.58852904,180.83,180.79,33.87118135]
[1752810806461,6.58852904,180.83,180.79,34.57118135]
[1752810807162,0.06,180.83,180.79,33.87118135]
[1752810807373,0.06,180.83,180.8,17.48468397]
[1752810807558,0.06,180.83,180.81,28.34]
[1752810807758,0.06,180.83,180.81,35.56852904]
[1752810807956,0.06,180.83,180.82,0.7]
[1752810808152,0.06,180.83,180.81,29.04]
[1752810809853,0.06,180.83,180.81,34.57057006]
[1752810810973,0.06,180.83,180.82,17.48468397]
[1752810811182,0.06,180.83,180.82,24.01321301]
[1752810811954,0.06,180.83,180.82,29.54357469]
[1752810814072,0.06,180.83,180.82,23.01504565]
[1752810814277,0.06,180.83,180.82,29.54357469]
[1752810817979,0.06,180.84,180.82,45.28573626]
[1752810818165,0.06,180.92,180.89,42.78468397]
[1752810818371,0.1,181.02,180.92,23.34558397]
[1752810818565,0.1,181.02,180.97,12.05415569]
[1752810818767,0.1,181.02,180.98,51.63321301]
[1752810818966,0.1,181.02,180.98,52.33321301]
[1752810819171,0.1,181.02,180.99,0.7]
[1752810819401,0.1,181.02,181.0,28.32]
[1752810819898,0.1,181.02,181.01,24.01321301]
[1752810820666,0.1,181.02,181.01,29.53776966]
[1752810821493,0.1,181.02,181.01,24.01321301]
[1752810821683,0.1,181.02,181.01,17.48468397]
[1752810821857,0.1,181.02,181.01,24.01321301]
[1752810823081,0.1,181.02,181.01,29.53776966]
[1752810823475,0.1,181.02,181.01,36.02856966]
[1752810825386,0.1,181.02,181.01,52.29548397]
[1752810826178,6.52852904,181.09,181.04,16.78468397]
[1752810826487,6.52852904,181.05,181.01,6.4908]
[1752810826687,7.10852904,181.04,181.02,28.34]
[1752810826875,7.10852904,181.04,181.03,28.34]
[1752810827192,12.63217022,181.04,181.03,28.34]
[1752810827396,26.0,181.01,180.97,16.78468397]
[1752810827600,6.52852904,180.99,180.98,28.34]
[1752810827765,7.10852904,181.0,180.98,28.34]
[1752810828996,6.52852904,180.99,180.98,28.34]
[1752810829386,7.10852904,181.0,180.98,28.34]
[1752810829578,6.52852904,180.99,180.98,28.34]
[1752810830692,7.10852904,180.99,180.98,28.34]
[1752810831081,6.52852904,180.99,180.98,28.34]
[1752810831872,12.05369617,180.99,180.98,28.34]
[1752810832094,12.63369617,180.99,180.98,28.34]
[1752810832474,7.10852904,180.99,180.98,28.34]
[1752810832675,6.52852904,180.99,180.98,28.34]
[1752810833798,6.52852904,181.0,180.98,28.34]
[1752810834009,6.52852904,181.01,180.98,28.34]
[1752810834602,6.52852904,181.0,180.98,28.34]
[1752810835773,6.52852904,181.01,180.98,28.34]
[1752810835976,26.0,181.01,180.99,0.67]
[1752810836184,26.0,181.01,181.0,28.32]
[1752810836604,32.52852904,181.01,181.0,28.32]
[1752810836793,6.10335431,181.05,181.0,28.32]
[1752810836988,6.52852904,181.03,181.0,28.99]
[1752810837200,6.10335431,181.05,181.01,17.45468397]
[1752810837201,6.52852904,181.05,181.01,17.45468397]
[1752810837401,6.52852904,181.04,181.02,28.3]
[1752810838499,6.52852904,181.03,181.02,28.3]
[1752810839090,32.10322545,181.06,181.02,28.3]
[1752810839283,6.52852904,181.04,181.02,28.3]
[1752810840079,0.58,181.05,181.02,28.3]
[1752810840301,6.52852904,181.04,181.02,28.3]
[1752810840495,26.0,181.06,181.02,28.3]
[1752810840681,6.52852904,181.05,181.02,34.49421251]
[1752810840885,5.58246899,181.08,181.02,34.49421251]
[1752810840886,6.58852904,181.08,181.03,17.45468397]
[1752810841083,6.58852904,181.08,181.05,16.78468397]
[1752810841294,26.0,181.07,181.06,45.75468397]
[1752810841497,0.06,181.08,181.07,16.78468397]
[1752810841689,0.06,181.08,181.07,17.45468397]
[1752810842602,0.06,181.08,181.07,22.97740998]
[1752810843604,0.06,181.08,181.07,24.55690998]
[1752810843907,0.06,181.08,181.07,31.08543902]
[1752810844902,0.06,181.1,181.09,42.78468397]
[1752810845102,0.06,181.1,181.09,77.59321301]
[1752810845309,0.06,181.1,181.09,71.73468397]
[1752810845511,0.06,181.1,181.09,78.26321301]
[1752810846303,0.06,181.1,181.09,83.78532908]
[1752810847614,6.52852904,181.19,181.1,16.78468397]
[1752810847790,6.52852904,181.19,181.15,16.78468397]
[1752810848110,6.52852904,181.19,181.16,28.93]
[1752810848489,7.16852904,181.18,181.11,0.67]
[1752810848691,6.52852904,181.16,181.12,45.04468397]
[1752810848890,6.52852904,181.16,181.12,45.71468397]
[1752810849304,6.52852904,181.16,181.13,5.52089659]
[1752810849513,6.52852904,181.16,181.15,16.78468397]
[1752810850192,6.52852904,181.16,181.14,28.28]
[1752810850393,6.52852904,181.15,181.1,6.19162188]
[1752810850615,6.52852904,181.14,181.11,28.26]
[1752810850821,7.10852904,181.14,181.12,16.78468397]
[1752810850995,0.58,181.14,181.13,28.26]
[1752810851200,7.10852904,181.14,181.13,28.26]
[1752810852001,0.14216157,181.17,181.13,33.78083791]
[1752810852213,6.52852904,181.16,181.13,28.26]
[1752810852596,6.52852904,181.16,181.13,34.45065444]
[1752810853098,6.52852904,181.17,181.13,34.45065444]
[1752810853308,6.52852904,181.17,181.14,0.67]
[1752810853505,26.0,181.16,181.15,28.26]
[1752810853710,32.52852904,181.16,181.15,28.26]
[1752810854025,33.10852904,181.16,181.15,28.26]
[1752810854323,7.10852904,181.16,181.15,28.26]
[1752810854822,7.10852904,181.16,181.13,28.26]
[1752810855122,6.52852904,181.14,181.13,28.26]
[1752810856311,6.52852904,181.14,181.07,8.33]
[1752810856312,12.62912084,181.14,181.07,8.33]
[1752810856512,6.52852904,181.08,181.05,16.78468397]
[1752810856820,6.52852904,181.08,181.06,28.24]
[1752810857210,6.52852904,181.09,181.06,28.24]
[1752810857734,6.10151439,181.11,181.06,28.24]
[1752810857902,6.52852904,181.09,181.06,28.24]
[1752810858104,6.52852904,181.09,181.06,28.91]
[1752810859198,6.10151439,181.11,181.06,28.91]
[1752810859199,6.52852904,181.08,181.06,28.91]
[1752810860328,6.52852904,181.08,181.06,28.24]
[1752810861028,26.0,181.13,181.04,16.78468397]
[1752810861029,7.10852904,181.07,181.04,16.78468397]
[1752810861229,6.52852904,181.05,181.04,45.00468397]
[1752810861411,0.58,181.07,181.04,45.00468397]
[1752810861612,6.52852904,181.07,181.04,45.00468397]
[1752810861811,6.52852904,181.06,181.04,45.00468397]
[1752810862125,5.52189418,181.1,181.04,50.52811319]
[1752810862327,6.52852904,181.07,181.05,0.72]
[1752810862526,6.52852904,181.07,181.06,28.52]
[1752810864505,0.14216157,181.09,181.06,51.547715]
[1752810864506,6.52852904,181.09,181.06,51.547715]
[1752810864715,6.52852904,181.09,181.07,0.72]
[1752810864921,0.72216157,181.11,181.08,28.52]
[1752810865124,6.52852904,181.09,181.08,28.52]
[1752810866731,26.0,181.1,181.08,28.52]
[1752810866913,6.52852904,181.09,181.08,28.52]
[1752810872112,6.52852904,181.09,181.08,29.24]
[1752810872309,6.52852904,181.09,181.08,34.76242102]
[1752810873132,6.52852904,181.09,181.08,29.24]
[1752810873337,6.52852904,181.09,181.08,28.52]
[1752810874542,5.66343095,181.12,181.08,28.52]
[1752810874841,6.52852904,181.09,181.08,29.24]
[1752810875423,7.10852904,181.09,181.04,0.72]
[1752810875635,6.52852904,181.06,181.05,28.48]
[1752810875839,6.52852904,181.07,181.03,8.5263]
[1752810876150,6.52852904,181.07,181.04,29.2]
[1752810876324,6.52852904,181.06,181.05,0.72]
[1752810876524,6.52852904,181.06,181.05,29.2]
[1752810876743,6.52852904,181.06,181.05,28.48]
[1752810879128,0.14216157,181.07,181.05,28.46]
[1752810879329,6.52852904,181.06,181.05,28.49]
[1752810880048,7.25069061,181.06,181.05,0.03]
[1752810881126,12.77372164,181.06,181.05,0.03]
[1752810884140,32.67069061,181.06,181.05,0.03]
[1752810884340,38.19372164,181.06,181.05,0.03]
[1752810884855,38.77372164,181.06,181.05,0.03]
[1752810887155,43.134913,181.06,181.05,0.03]
[1752810887332,38.77372164,181.06,181.05,0.03]
[1752810889439,38.19372164,181.06,181.05,0.03]
[1752810889643,32.67069061,181.06,181.05,0.03]
[1752810890570,38.77372164,181.06,181.05,0.03]
[1752810894659,38.77372164,181.06,181.01,0.03]
[1752810894660,26.14216157,181.02,181.01,0.03]